bitfinex/quotes_SOLUSD_20251201
["timestamp","ask_amount","ask_price","bid_price","bid_amount"]
[1764600615970,13.70847754,126.01,125.96,14.42847754]
[1764600616170,13.70847754,126.02,125.96,14.42847754]
[1764600616382,13.70847754,126.02,125.97,14.42847754]
[1764600616577,13.70847754,125.99,125.97,0.72]
[1764600616778,13.70847754,125.99,125.95,27.78880507]
[1764600616986,27.76675921,126.05,125.96,0.72]
[1764600617291,13.70847754,125.99,125.96,0.72]
[1764600617672,20.05102557,126.02,125.96,0.72]
[1764600617990,0.14216157,126.01,125.95,27.78856929]
[1764600618187,13.70847754,125.98,125.95,28.50856929]
[1764600618392,13.70847754,125.98,125.95,8.65942281]
[1764600618701,16.308864,126.03,125.96,14.42847754]
[1764600618919,13.70847754,126.03,125.97,13.70847754]
[1764600619209,13.70847754,126.04,125.98,18.02847754]
[1764600619595,13.70847754,126.04,125.99,0.72]
[1764600619798,13.70847754,126.04,125.99,14.42847754]
[1764600619995,21.6425774,126.04,126.0,7.93650793]
[1764600620197,21.6425774,126.04,126.0,8.65650793]
[1764600620909,21.6418522,126.05,126.01,0.72]
[1764600621210,13.70847754,126.04,126.01,0.72]
[1764600621389,21.6418522,126.05,126.01,0.72]
[1764600621589,39.74148445,126.06,126.01,14.42847754]
[1764600621590,13.70847754,126.06,126.01,14.42847754]
[1764600621795,13.70847754,126.03,126.0,7.93650793]
[1764600622007,8.95210649,126.06,126.0,7.93650793]
[1764600622008,13.70847754,126.02,126.0,7.93650793]
[1764600622382,13.70847754,126.02,126.0,8.65650793]
[1764600622681,13.70847754,126.03,126.0,7.93650793]
[1764600623009,36.13911703,126.07,126.01,14.42847754]
[1764600623010,30.01734154,126.07,126.01,14.42847754]
[1764600623225,30.01734154,126.07,126.02,0.72]
[1764600623579,30.01734154,126.07,126.02,14.42847754]
[1764600623886,13.70847754,126.1,126.05,7.93335977]
[1764600624086,13.70847754,126.08,126.04,11.53374401]
[1764600624401,13.70847754,126.08,126.04,31.36871703]
[1764600624584,13.70847754,126.09,126.05,0.72]
[1764600624985,8.80994492,126.1,126.05,0.72]
[1764600624986,13.70847754,126.1,126.05,0.72]
[1764600625186,11.52959367,126.11,126.05,0.72]
[1764600625478,19.82073263,126.14,126.06,13.70847754]
[1764600625684,13.70847754,126.12,126.06,13.70847754]
[1764600625884,13.70847754,126.11,126.08,7.93147208]
[1764600626394,13.70847754,126.1,126.08,7.93147208]
[1764600626581,13.70847754,126.09,126.07,7.9319393]
[1764600626982,13.70847754,126.09,126.07,8.6219393]
[1764600627501,13.70847754,126.08,126.06,7.93264096]
[1764600628214,13.70847754,126.07,126.03,8.62443613]
[1764600628394,13.70847754,126.07,126.04,0.69]
[1764600629186,16.308864,126.08,126.04,0.69]
[1764600629494,30.01734154,126.08,126.04,0.69]
[1764600629892,16.308864,126.08,126.04,0.69]
[1764600630113,13.70847754,126.07,126.04,12.22348883]
[1764600630416,13.70847754,126.05,126.03,3.6]
[1764600630590,13.70847754,126.05,126.03,4.29]
[1764600630788,13.70847754,126.07,126.04,0.69]
[1764600630988,13.70847754,126.1,126.04,14.39847754]
[1764600631404,13.70847754,126.1,126.05,0.69]
[1764600631718,13.70847754,126.11,126.06,3.6]
[1764600631887,7.92616668,126.17,126.1,13.70847754]
[1764600632087,13.90847754,126.16,126.12,27.75134791]
[1764600632290,13.70847754,126.15,126.12,27.75134791]
[1764600632492,13.70847754,126.15,126.12,8.61895654]
[1764600632692,13.70847754,126.15,126.12,0.69]
[1764600633019,13.70847754,126.15,126.13,0.69]
[1764600633798,13.70847754,126.14,126.1,11.52977891]
[1764600634107,13.70847754,126.13,126.1,4.29]
[1764600634308,13.70847754,126.13,126.1,12.22012548]
[1764600634513,13.70847754,126.12,126.1,3.6]
[1764600634811,13.70847754,126.12,126.09,7.93061099]
[1764600635001,13.70847754,126.12,126.09,8.62061099]
[1764600635714,13.70847754,126.12,126.09,7.93061099]
[1764600635913,13.70847754,126.1,126.07,0.69]
[1764600636104,13.70847754,126.1,126.07,11.53198868]
[1764600636300,13.70847754,126.09,126.07,11.53198868]
[1764600636497,13.70847754,126.1,126.07,11.53198868]
[1764600636705,13.70847754,126.11,126.07,12.22198868]
[1764600637212,25.11880892,126.12,126.08,0.69]
[1764600637407,30.01734154,126.14,126.09,13.70847754]
[1764600637596,13.70847754,126.13,126.1,3.6]
[1764600638217,13.70847754,126.13,126.1,4.29]
[1764600638514,13.70847754,126.13,126.1,12.21970929]
[1764600638699,0.2,126.16,126.11,0.69]
[1764600638894,0.2,126.16,126.12,13.70847754]
[1764600639307,0.2,126.16,126.13,0.69]
[1764600639900,0.2,126.16,126.13,4.29]
[1764600640192,0.2,126.16,126.13,17.99847754]
[1764600640399,0.2,126.16,126.15,7.92707094]
[1764600640909,0.2,126.16,126.14,8.61742783]
[1764600641309,0.2,126.16,126.13,7.92832791]
[1764600641503,13.90847754,126.16,126.13,12.21832791]
[1764600641821,0.2,126.16,126.14,0.69]
[1764600642716,0.2,126.16,126.14,8.61729413]
[1764600643521,13.90847754,126.16,126.14,7.92729413]
[1764600643694,22.51842246,126.15,126.11,7.92958528]
[1764600643900,13.70847754,126.14,126.11,8.61958528]
[1764600644601,13.70847754,126.14,126.12,0.69]
[1764600644923,13.70847754,126.14,126.12,7.92848993]
[1764600645911,13.70847754,126.13,126.1,11.50991277]
[1764600646111,13.70847754,126.12,126.1,11.50991277]
[1764600646316,13.70847754,126.14,126.11,0.69]
[1764600647027,13.70847754,126.15,126.11,28.44299557]
[1764600647519,13.70847754,126.13,126.11,11.50903237]
[1764600647722,7.92707094,126.15,126.1,7.93021411]
[1764600647723,8.80994492,126.14,126.1,7.93021411]
[1764600647922,13.70847754,126.12,126.1,7.93021411]
[1764600648143,13.70847754,126.13,126.11,0.69]
[1764600648833,13.70847754,126.12,126.1,7.93021411]
[1764600649332,13.70847754,126.11,126.1,7.93021411]
[1764600650203,13.70847754,126.11,126.08,12.20110331]
[1764600650426,13.70847754,126.1,126.08,11.51110331]
[1764600650625,13.70847754,126.1,126.08,3.58]
[1764600650815,13.70847754,126.1,126.08,4.27]
[1764600651000,13.70847754,126.11,126.09,0.69]
[1764600652205,13.70847754,126.11,126.08,31.33997325]
[1764600652405,13.70847754,126.11,126.08,32.02997325]
[1764600652807,16.308864,126.14,126.09,0.69]
[1764600653006,13.70847754,126.13,126.1,7.93021411]
[1764600653337,13.70847754,126.12,126.1,7.93021411]
[1764600653622,13.70847754,126.12,126.1,8.62021411]
[1764600653831,13.70847754,126.11,126.08,11.51124695]
[1764600654129,13.70847754,126.11,126.08,32.02992715]
[1764600654339,13.70847754,126.12,126.09,0.69]
[1764600655442,13.70847754,126.12,126.09,28.44739605]
[1764600655910,13.70847754,126.12,126.1,0.69]
[1764600656728,13.70847754,126.12,126.09,7.93028843]
[1764600656934,13.70847754,126.12,126.09,8.63028843]
[1764600657284,13.70847754,126.12,126.08,8.63139545]
[1764600657522,16.308864,126.14,126.09,0.7]
[1764600657704,13.70847754,126.13,126.1,3.58]
[1764600658116,13.70847754,126.13,126.11,0.7]
[1764600658432,8.73134522,126.13,126.11,0.7]
[1764600658640,8.73134522,126.12,126.1,3.58]
[1764600658841,7.92725226,126.15,126.1,4.28]
[1764600658842,8.73134522,126.13,126.1,4.28]
[1764600659021,8.73134522,126.13,126.11,0.7]
[1764600659328,25.46097049,126.16,126.12,7.92895654]
[1764600659329,8.73134522,126.14,126.12,7.92895654]
[1764600660341,0.2,126.16,126.13,13.01134522]
[1764600660632,0.2,126.19,126.15,8.73134522]
[1764600660802,0.2,126.19,126.16,3.58]
[1764600661027,0.4,126.19,126.15,3.58]
[1764600661341,8.73134522,126.18,126.16,7.92644261]
[1764600661543,0.2,126.19,126.16,8.62644261]
[1764600661708,0.2,126.19,126.17,0.7]
[1764600662027,0.2,126.19,126.16,16.65778783]
[1764600662028,8.93134522,126.19,126.16,28.44254914]
[1764600662447,8.93134522,126.19,126.17,0.7]
[1764600662648,0.2,126.19,126.17,0.7]
[1764600662808,0.2,126.19,126.18,3.58]
[1764600663008,0.2,126.19,126.17,0.7]
[1764600663221,0.2,126.19,126.18,7.92518624]
[1764600663633,0.2,126.19,126.18,17.35653146]
[1764600663815,8.73134522,126.24,126.18,37.16949706]
[1764600664019,8.73134522,126.21,126.19,3.58]
[1764600664221,8.73134522,126.22,126.19,3.58]
[1764600664733,8.73134522,126.22,126.19,4.28]
[1764600664934,8.73134522,126.21,126.18,27.73815184]
[1764600665130,8.73134522,126.21,126.18,31.31815184]
[1764600665435,8.73134522,126.21,126.18,32.01815184]
[1764600665624,8.73134522,126.22,126.18,31.31815184]
[1764600665934,8.73134522,126.24,126.19,9.43134522]
[1764600666140,8.73134522,126.2,126.18,7.92518624]
[1764600666310,8.80994492,126.22,126.18,7.92518624]
[1764600666630,8.73134522,126.22,126.19,0.7]
[1764600666837,25.04020922,126.24,126.2,3.58]
[1764600667006,8.73134522,126.24,126.2,3.58]
[1764600667209,8.73134522,126.23,126.2,3.58]
[1764600667408,8.73134522,126.23,126.21,7.92330243]
[1764600667827,7.92104116,126.25,126.21,8.62330243]
[1764600668017,8.73134522,126.24,126.21,8.62330243]
[1764600668224,8.73134522,126.23,126.2,11.50380724]
[1764600668443,8.73134522,126.21,126.18,3.58]
[1764600668749,8.73134522,126.19,126.14,19.81833095]
[1764600668910,8.73134522,126.15,126.13,7.92832791]
[1764600669537,8.73134522,126.15,126.13,8.62832791]
[1764600669713,8.73134522,126.16,126.13,8.62832791]
[1764600669913,8.73134522,126.14,126.12,7.92879697]
[1764600670110,8.73134522,126.14,126.12,8.62879697]
[1764600670537,8.73134522,126.13,126.11,3.58]
[1764600670848,53.00155106,126.17,126.09,3.58]
[1764600670849,8.73134522,126.12,126.09,3.58]
[1764600671137,8.73134522,126.13,126.1,0.7]
[1764600671509,8.80994492,126.16,126.1,8.62996234]
[1764600671708,8.73134522,126.13,126.1,0.7]
[1764600671909,8.73134522,126.13,126.1,8.63005896]
[1764600672224,8.73134522,126.13,126.1,0.7]
[1764600672428,8.73134522,126.13,125.96,57.36336523]
[1764600672429,8.73134522,126.11,126.05,8.73134522]
[1764600672733,8.73134522,126.09,126.04,29.32020922]
[1764600672934,8.73134522,126.1,126.05,8.73134522]
[1764600673232,8.73134522,126.1,126.05,9.43134522]
[1764600673422,8.73134522,126.1,126.07,7.93210121]
[1764600673623,8.73134522,126.09,126.07,3.58]
[1764600673841,8.32963831,126.11,126.07,3.58]
[1764600674133,8.73134522,126.09,126.07,3.58]
[1764600674816,8.73134522,126.1,126.07,4.28]
[1764600675222,8.73134522,126.11,126.08,0.7]
[1764600675424,8.73134522,126.11,126.08,8.63084541]
[1764600675824,8.73134522,126.13,126.09,0.7]
[1764600676044,8.73134522,126.15,126.1,12.31134522]
[1764600676219,8.73134522,126.16,126.11,9.43134522]
[1764600676421,8.73134522,126.15,126.11,0.7]
[1764600678928,11.90224361,126.23,126.16,3.58]
[1764600679125,8.73134522,126.21,126.16,3.58]
[1764600679351,25.04020922,126.21,126.17,0.7]
[1764600679531,8.73134522,126.21,126.18,7.92518624]
[1764600679731,8.73134522,126.21,126.17,0.7]
[1764600679941,8.73134522,126.21,126.17,8.62578744]
[1764600680163,8.73134522,126.2,126.17,12.20578744]
[1764600680552,8.80994492,126.24,126.18,9.43134522]
[1764600680739,8.73134522,126.24,126.19,8.73134522]
[1764600681050,8.73134522,126.22,126.17,27.74032338]
[1764600681352,8.73134522,126.21,126.17,27.74032338]
[1764600681543,8.73134522,126.21,126.17,28.44032338]
[1764600681956,8.73134522,126.2,126.17,8.62578744]
[1764600682588,8.73134522,126.21,126.18,0.7]
[1764600682867,8.73134522,126.22,126.18,0.7]
[1764600683237,8.73134522,126.22,126.19,3.58]
[1764600683646,8.73134522,126.22,126.2,7.92393026]
[1764600684338,33.04033769,126.24,126.2,8.62393026]
[1764600684538,8.73134522,126.23,126.2,8.62393026]
[1764600685644,7.92152877,126.24,126.21,0.7]
[1764600685645,8.73134522,126.24,126.21,0.7]
[1764600685866,8.73134522,126.23,126.2,8.62393026]
[1764600686043,8.73134522,126.22,126.2,8.62393026]
[1764600686234,8.73134522,126.23,126.2,8.62393026]
[1764600686436,8.73134522,126.24,126.21,0.68]
[1764600686872,8.73134522,126.23,126.21,0.68]
[1764600687034,8.73134522,126.22,126.19,7.92440475]
[1764600687238,8.73134522,126.22,126.19,8.60440475]
[1764600687458,8.73134522,126.23,126.2,0.68]
[1764600688177,8.73134522,126.22,126.19,7.92440475]
[1764600688376,8.73134522,126.22,126.19,8.63440475]
[1764600689469,8.73134522,126.23,126.19,27.73580026]
[1764600689796,8.73134522,126.23,126.19,7.92440475]
[1764600689797,8.73134522,126.21,126.19,7.92440475]
[1764600689984,8.73134522,126.2,126.15,0.71]
[1764600690275,8.73134522,126.17,126.15,7.92707094]
[1764600690699,8.73134522,126.17,126.14,3.58]
[1764600690979,0.4,126.19,126.14,3.58]
[1764600690980,8.73134522,126.19,126.15,0.71]
[1764600691195,8.73134522,126.18,126.14,3.58]
[1764600691357,8.73134522,126.18,126.15,0.71]
[1764600691557,8.73134522,126.18,126.16,7.92644261]
[1764600691800,8.73134522,126.17,126.15,0.71]
[1764600692381,8.73134522,126.17,126.14,12.21767252]
[1764600692685,8.73134522,126.17,126.15,0.71]
[1764600692858,8.73134522,126.17,126.14,11.50767252]
[1764600693061,8.73134522,126.16,126.14,3.58]
[1764600693273,8.73134522,126.16,126.12,0.71]
[1764600693475,8.73134522,126.16,126.13,3.58]
[1764600693782,8.73134522,126.17,126.13,3.58]
[1764600693987,8.73134522,126.17,126.14,0.71]
[1764600694163,8.73134522,126.18,126.14,0.71]
[1764600694485,16.308864,126.21,126.14,0.71]
[1764600694675,8.73134522,126.22,126.16,8.73134522]
[1764600694860,8.73134522,126.21,126.15,16.308864]
[1764600695065,25.26097049,126.24,126.16,3.58]
[1764600695066,8.73134522,126.19,126.16,3.58]
[1764600695568,8.73134522,126.19,126.16,12.21619903]
[1764600695773,8.73134522,126.2,126.17,0.71]
[1764600696377,17.54129014,126.21,126.17,0.71]
[1764600696573,105.40700258,126.25,126.17,9.44134522]
[1764600696574,7.92155701,126.24,126.17,9.44134522]
[1764600696780,25.04020922,126.23,126.18,8.73134522]
[1764600696984,16.93033883,126.26,126.19,12.31134522]
[1764600697282,8.73134522,126.24,126.19,13.02134522]
[1764600697489,9.00994492,126.26,126.2,8.63393026]
[1764600697678,17.74129014,126.26,126.21,8.73134522]
[1764600697866,8.73134522,126.25,126.22,3.58]
[1764600698073,8.73134522,126.25,126.22,4.29]
[1764600698275,16.93063146,126.26,126.22,3.58]
[1764600698604,8.73134522,126.24,126.22,3.58]
[1764600698894,9.00994492,126.26,126.22,4.29]
[1764600699072,17.74129014,126.26,126.22,4.29]
[1764600699274,8.73134522,126.25,126.22,4.29]
[1764600699596,8.73134522,126.25,126.22,12.2120758]
[1764600699967,8.73134522,126.24,126.22,3.58]
[1764600700187,8.73134522,126.24,126.21,7.92330243]
[1764600700389,8.73134522,126.23,126.21,7.92330243]
[1764600700782,8.80994492,126.24,126.21,7.92330243]
[1764600700986,8.80994492,126.24,126.21,8.63330243]
[1764600700987,8.73134522,126.24,126.21,8.63330243]
[1764600701379,16.65214456,126.25,126.21,8.63330243]
[1764600702180,8.93134522,126.26,126.22,0.71]
[1764600703424,17.25154092,126.26,126.22,0.71]
[1764600703792,17.25154092,126.26,126.22,7.92215024]
[1764600703793,8.73134522,126.25,126.22,7.92215024]
[1764600704002,8.73134522,126.25,126.2,11.50346079]
[1764600704003,8.73134522,126.23,126.2,11.50346079]
[1764600704306,8.73134522,126.23,126.2,12.21346079]
[1764600704508,0.2,126.26,126.23,16.308864]
[1764600704695,8.73134522,126.24,126.2,27.73328646]
[1764600704896,8.73134522,126.24,126.15,1.99999999]
[1764600704897,8.73134522,126.21,126.15,9.44134522]
[1764600705219,8.73134522,126.22,126.17,8.73134522]
[1764600705394,8.73134522,126.2,126.16,0.71]
[1764600705597,0.4,126.22,126.16,4.29]
[1764600705598,8.73134522,126.19,126.16,4.29]
[1764600705909,8.73134522,126.21,126.17,7.92581437]
[1764600706110,8.73134522,126.22,126.17,17.36715959]
[1764600706312,8.73134522,126.25,126.2,8.73134522]
[1764600706621,8.73134522,126.25,126.2,12.31134522]
[1764600706795,8.93134522,126.26,126.21,9.44134522]
[1764600706995,8.73134522,126.25,126.21,0.71]
[1764600707294,8.73134522,126.25,126.22,0.71]
[1764600707914,8.73134522,126.25,126.19,3.58]
[1764600707915,8.73134522,126.23,126.19,3.58]
[1764600708092,8.73134522,126.21,126.18,4.29]
[1764600708297,8.73134522,126.22,126.18,4.29]
[1764600708492,17.54129014,126.23,126.19,0.71]
[1764600708692,8.73134522,126.23,126.19,0.71]
[1764600709294,8.73134522,126.24,126.19,0.71]
[1764600709693,8.73134522,126.23,126.2,7.92393026]
[1764600709912,8.73134522,126.24,126.2,7.92393026]
[1764600710116,8.73134522,126.24,126.21,3.58]
[1764600710312,8.73134522,126.25,126.21,4.29]
[1764600710525,8.73134522,126.25,126.22,0.71]
[1764600710739,0.2,126.26,126.22,9.44134522]
[1764600711237,0.2,126.26,126.24,8.73134522]
[1764600711537,0.2,126.26,126.24,3.58]
[1764600711707,0.2,126.26,126.25,8.63079207]
[1764600711913,0.2,126.26,126.25,0.71]
[1764600712711,0.2,126.26,126.25,4.29]
[1764600713523,0.2,126.26,126.25,0.71]
[1764600713830,0.2,126.26,126.25,8.63079207]
[1764600714228,0.2,126.26,126.24,3.58]
[1764600714437,8.93134522,126.26,126.24,3.58]
[1764600714833,0.2,126.26,126.24,11.50129427]
[1764600715138,0.2,126.26,126.25,0.71]
[1764600716136,0.2,126.26,126.25,8.63079207]
[1764600717755,0.2,126.26,126.25,17.36213729]
[1764600718651,0.2,126.26,126.25,8.63079207]
[1764600718949,0.2,126.26,126.25,17.36213729]
[1764600719150,0.2,126.29,126.25,76.76807787]
[1764600719330,0.2,126.29,126.28,8.73134522]
[1764600719536,0.2,126.29,126.28,12.31134522]
[1764600719734,0.2,126.29,126.28,13.00134522]
[1764600719930,0.2,126.29,126.28,20.92025557]
[1764600720466,0.2,126.35,126.29,16.308864]
[1764600720759,13.83123834,126.35,126.3,13.63123834]
[1764600720934,13.63123834,126.34,126.31,3.58]
[1764600721332,13.63123834,126.33,126.31,3.58]
[1764600721671,8.80994492,126.34,126.3,14.32123834]
[1764600721973,22.44118326,126.34,126.31,3.58]
[1764600722125,13.63123834,126.33,126.31,3.58]
[1764600722329,14.23123834,126.33,126.3,7.91721755]
[1764600722541,13.63123834,126.33,126.3,7.91721755]
[1764600722759,30.35646928,126.34,126.3,7.91721755]
[1764600723059,30.95646928,126.34,126.3,7.91721755]
[1764600723367,8.11456229,126.35,126.3,41.34259682]
[1764600723675,0.2,126.35,126.34,13.63123834]
[1764600723826,0.2,126.35,126.34,17.90123834]
[1764600724233,0.2,126.35,126.34,3.58]
[1764600724566,0.2,126.35,126.34,17.90123834]
[1764600725557,0.2,126.35,126.34,25.81638793]
[1764600725755,0.2,126.35,126.34,12.18514959]
[1764600725954,0.2,126.35,126.34,25.81638793]
[1764600726159,0.2,126.35,126.34,42.2674135]
[1764600726362,0.2,126.37,126.36,0.14216157]
[1764600726652,0.2,126.37,126.36,13.77339991]
[1764600726856,0.2,126.37,126.36,14.46339991]
[1764600727463,0.2,126.37,126.36,38.68616071]
[1764600728462,14.43123834,126.37,126.35,7.91452314]
[1764600728639,13.63123834,126.36,126.33,3.58]
[1764600728834,22.34467938,126.37,126.33,3.58]
[1764600729034,13.83123834,126.37,126.33,17.21123834]
[1764600729254,0.2,126.37,126.34,0.69]
[1764600729455,0.2,126.37,126.35,7.91452314]
[1764600730056,0.2,126.37,126.36,4.27]
[1764600731135,0.2,126.37,126.36,3.58]
[1764600731559,0.2,126.37,126.35,7.91395606]
[1764600731749,0.2,126.37,126.35,11.49395606]
[1764600732138,0.2,126.37,126.35,12.18395606]
[1764600732353,0.2,126.37,126.35,11.49395606]
[1764600732534,13.83123834,126.37,126.35,11.49442751]
[1764600732735,0.2,126.37,126.35,11.49442751]
[1764600732954,0.6,126.36,126.31,16.308864]
[1764600733262,13.63123834,126.35,126.31,24.22569412]
[1764600733450,13.63123834,126.35,126.31,44.01826794]
[1764600733643,13.63123834,126.35,126.32,0.69]
[1764600733845,13.63123834,126.35,126.33,3.58]
[1764600734538,13.63123834,126.34,126.3,0.69]
[1764600734747,13.63123834,126.31,126.27,0.69]
[1764600734940,13.63123834,126.31,126.28,3.58]
[1764600735142,13.63123834,126.3,126.28,3.58]
[1764600735851,13.63123834,126.32,126.29,0.69]
[1764600736440,13.63123834,126.34,126.29,0.69]
[1764600737666,14.23123834,126.34,126.3,7.91765637]
[1764600737844,13.63123834,126.33,126.31,3.58]
[1764600739663,22.14639394,126.34,126.31,3.58]
[1764600739990,13.63123834,126.33,126.31,3.58]
[1764600740268,8.5151556,126.34,126.31,3.58]
[1764600740572,13.63123834,126.33,126.31,3.58]
[1764600740749,13.63123834,126.32,126.28,27.71459711]
[1764600740957,13.63123834,126.3,126.29,3.58]
[1764600741158,13.63123834,126.3,126.26,7.9196139]
[1764600741369,13.63123834,126.28,126.27,3.58]
[1764600741950,28.60242624,126.32,126.27,11.49930547]
[1764600741951,7.91702953,126.31,126.27,11.49930547]
[1764600742157,13.63123834,126.32,126.28,0.69]
[1764600742364,13.63123834,126.31,126.28,0.69]
[1764600742879,13.63123834,126.29,126.27,11.49930547]
[1764600743174,13.63123834,126.28,126.27,3.58]
[1764600743358,13.63123834,126.29,126.27,3.58]
[1764600744382,14.23123834,126.28,126.24,7.92080539]
[1764600744589,13.63123834,126.26,126.24,7.92080539]
[1764600744750,13.63123834,126.26,126.24,11.50080539]
[1764600745563,13.63123834,126.25,126.23,7.92202121]
[1764600745881,13.63123834,126.26,126.23,0.69]
[1764600746077,13.63123834,126.25,126.22,7.92267469]
[1764600746289,13.63123834,126.26,126.22,8.63267469]
[1764600746452,13.63123834,126.27,126.22,42.07059976]
[1764600746779,13.63123834,126.26,126.22,28.43936142]
[1764600746986,13.63123834,126.25,126.22,27.72936142]
[1764600747358,13.63123834,126.25,126.22,28.43936142]
[1764600748274,8.51994433,126.27,126.22,28.43936142]
[1764600748482,13.63123834,126.25,126.22,28.43936142]
[1764600749358,21.55118267,126.27,126.24,7.92141951]
[1764600749566,16.72893263,126.28,126.25,3.58]
[1764600749776,13.63123834,126.31,126.26,13.63123834]
[1764600750081,22.44118326,126.32,126.27,14.32123834]
[1764600750375,13.63123834,126.32,126.28,3.58]
[1764600750682,7.91554563,126.34,126.29,13.63123834]
[1764600750683,13.63123834,126.34,126.29,13.63123834]
[1764600751178,7.91497053,126.35,126.3,0.69]
[1764600751487,21.74479417,126.37,126.32,21.54764112]
[1764600751790,13.83123834,126.37,126.32,41.33864808]
[1764600751974,0.2,126.37,126.33,0.69]
[1764600752161,0.2,126.37,126.34,3.58]
[1764600752479,0.2,126.37,126.34,17.21123834]
[1764600752678,0.2,126.37,126.35,30.63010234]
[1764600753058,0.2,126.37,126.36,0.69]
[1764600753454,0.2,126.37,126.36,7.9138968]
[1764600754354,0.2,126.37,126.34,12.18499881]
[1764600754554,0.2,126.37,126.35,3.58]
[1764600754778,0.2,126.37,126.35,4.27]
[1764600755477,0.2,126.37,126.35,12.18432091]
[1764600755776,0.2,126.37,126.35,3.58]
[1764600756079,0.2,126.37,126.36,0.69]
[1764600756577,0.2,126.37,126.36,14.32123834]
[1764600757064,0.2,126.37,126.36,0.69]
[1764600757463,0.2,126.37,126.35,3.58]
[1764600757661,0.2,126.37,126.36,3.58]
[1764600759277,13.83123834,126.37,126.33,3.58]
[1764600759479,0.2,126.37,126.34,22.23638793]
[1764600759790,0.2,126.37,126.36,29.94010234]
[1764600759970,0.2,126.37,126.36,33.52010234]
[1764600760167,0.2,126.37,126.36,34.21010234]
[1764600760576,0.2,126.37,126.36,20.578864]
[1764600760761,0.2,126.37,126.36,34.21010234]
[1764600761163,13.63123834,126.44,126.37,0.14216157]
[1764600761363,13.63123834,126.44,126.4,7.9113924]
[1764600761663,22.20950247,126.45,126.41,3.58]
[1764600761863,14.30123834,126.45,126.41,3.58]
[1764600762064,7.90770767,126.46,126.41,4.27]
[1764600762387,13.63123834,126.44,126.41,3.58]
[1764600762894,14.30123834,126.45,126.41,3.58]
[1764600763276,13.63123834,126.45,126.41,3.58]
[1764600763476,14.30123834,126.44,126.41,11.49053926]
[1764600764273,0.67,126.44,126.41,11.49053926]
[1764600764476,17.5875412,126.47,126.41,12.18053926]
[1764600764691,13.63123834,126.44,126.41,11.49053926]
[1764600765997,13.63123834,126.43,126.41,11.49053926]
[1764600766507,0.67,126.44,126.41,11.49053926]
[1764600766677,13.63123834,126.43,126.41,11.49053926]
[1764600766879,13.63123834,126.44,126.41,11.49053926]
[1764600768089,13.63123834,126.43,126.41,11.49053926]
[1764600769408,8.10703163,126.47,126.42,0.69]
[1764600769698,13.83123834,126.47,126.44,7.90888959]
[1764600769883,0.2,126.47,126.44,7.90888959]
[1764600770082,13.83123834,126.47,126.44,7.90888959]
[1764600770398,13.83123834,126.47,126.44,28.37111356]
[1764600770604,0.2,126.47,126.44,28.37111356]
[1764600770779,13.83123834,126.47,126.44,28.37111356]
[1764600771101,13.83123834,126.47,126.45,0.69]
[1764600771277,0.2,126.47,126.46,3.58]
[1764600771477,0.2,126.48,126.46,3.58]
[1764600771679,1e-08,126.49,126.48,24.21525236]
[1764600771902,1e-08,126.49,126.48,27.79525236]
[1764600772104,13.63123835,126.49,126.48,27.79525236]
[1764600772405,13.63123835,126.49,126.48,3.58]
[1764600772590,13.63123835,126.49,126.45,11.48791096]
[1764600772591,14.30123835,126.49,126.45,11.48791096]
[1764600772787,13.63123834,126.47,126.45,11.48791096]
[1764600773110,13.63123834,126.46,126.45,3.58]
[1764600773294,13.63123834,126.47,126.45,3.58]
[1764600773493,13.63123834,126.46,126.45,11.48826413]
[1764600774111,0.67,126.48,126.45,11.48826413]
[1764600774308,0.67,126.48,126.45,25.11950247]
[1764600774623,0.67,126.48,126.45,3.58]
[1764600774624,14.30123834,126.48,126.45,3.58]
[1764600774782,14.30123834,126.48,126.45,11.48818367]
[1764600774977,13.63123834,126.48,126.45,3.58]
[1764600775181,13.63123834,126.46,126.43,3.58]
[1764600775411,13.63123834,126.46,126.42,33.4060215]
[1764600775412,13.63123834,126.45,126.42,7.91000144]
[1764600775703,13.63123834,126.45,126.41,25.1218248]
[1764600775906,14.30123834,126.44,126.41,3.58]
[1764600776285,7.9087138,126.45,126.41,3.58]